Cogmind - Beta 13 X1 @@@ ROGUE MODE // 2023.08.22 @ 12:13:11 Player: youngster Result: Escaped! Performance ------------- Evolutions (9) 4500 Regions Visited (17) 3400 Robots Destroyed (102) 510 Value Destroyed (3948) 3948 Prototype IDs (51) 1020 Alien Tech Used (2) 400 Bonus (8757) 8757 TOTAL SCORE: 22535 Bonus ------- High Alert Combat Kills 274 Follower Combat Kills 949 Entered Garrisons 200 Met Zhirov 300 Scanned by Researcher 500 Acquired SGEMP 2000 Delivered SGEMP 2000 Win 3000 Friendly Fire -466 Cogmind --------- Core Integrity 1557/1600 Matter 214/300 Energy 86/100 System Corruption 5% Temperature Cool (4) Movement Treading (170) Location To Epsilon Eridani Parts ------- > --- POWER (3) -------- (None) > --- PROPULSION (8) --- Armored Heavy Treads Armored Heavy Treads Myomer Leg Myomer Leg > --- UTILITY (11) ----- Visual Processing Unit Advanced Sensor Array Advanced Signal Interpreter Improved Transmission Jammer Graphene Brace Deep Network Scanner > --- WEAPON (3) ------- (None) > --- INVENTORY (5) ---- Advanced Energy Well (400) Graphene Brace Null Cannon Linear Accelerator Peak State ------------ > --- POWER ------------ (None) > --- PROPULSION ------- Xenon Bombardment Thruster Xenon Bombardment Thruster Xenon Bombardment Thruster Impulse Thruster Field Propulsion Array Impulse Thruster Array > --- UTILITY ---------- 2N-1CE's Frost Array Visual Processing Unit Advanced Signal Interpreter Terrain Scanner Terrain Scan Processor Encrypted Comm Array Advanced System Shield Advanced System Shield > --- WEAPON ----------- Null Cannon Dual-blade Saw Heavy Pick > --- INVENTORY -------- Advanced Energy Well Assault Drone Bay Transdimensional Reconstructor Compact HERF Cannon [Rating: 115] Favorites ----------- Power Ion Engine Engine Ion Engine Power Core Micro Fission Core Reactor Light Particle Reactor Propulsion Cargo Legs Treads Light Treads Leg Cargo Legs Wheel Armored Wheel Flight Unit Xenon Bombardment Thruster Utility Huge Storage Unit Device Seismic Detector Storage Huge Storage Unit Processor Visual Processing Unit Hackware Makeshift Hacking Suite Protection Scrap Shield Weapon Battle Rifle Energy Gun EM Pulse Gun Energy Cannon Subdweller Beam Cannon Ballistic Gun Battle Rifle Ballistic Cannon Linear Accelerator Launcher Subdweller Shrapnel Launcher Impact Weapon Heavy Mace Slashing Weapon Dual-blade Saw Piercing Weapon Heavy Pick Special Melee Weapon Improved Datajack Build | -11 -10 -10 -8 -8 -8 -7 -6 -5 -4 -4 -4 -4 -3 -3 -3 -2 -1 ------- Run | Jun Mat Sub Mat Gar Mat Fac Fac Fac Fac Upp Upp Zhi Pro Res Tes Res Acc Slots Evolved 18 | . . . 4 . . 2 2 2 2 . . . . 2 . 2 2 Power 2 | . . . . . . . . . 1 . . . . . . . 1 Propulsion 6 | . . . 1 . . . 2 1 1 . . . . 1 . . . Utility 9 | . . . 2 . . 2 . 1 . . . . . 1 . 2 1 Weapon 1 | . . . 1 . . . . . . . . . . . . . . Parts Attached 198 | 7 8 37 16 34 8 1 2 24 . . 4 5 . 21 13 4 14 Power 10 | 1 . 2 1 1 . . . 2 . . . . . 1 2 . . Engine 6 | 1 . 2 1 . . . . 1 . . . . . . 1 . . Core 2 | . . . . 1 . . . 1 . . . . . . . . . Reactor 2 | . . . . . . . . . . . . . . 1 1 . . Propulsion 50 | 2 6 5 2 3 . . 2 7 . . 3 . . 11 4 1 4 Treads 19 | 2 2 4 . 1 . . 2 4 . . 1 . . 1 . . 2 Leg 8 | . . 1 . . . . . . . . 2 . . 1 1 1 2 Wheel 12 | . 4 . 2 2 . . . 3 . . . . . 1 . . . Hover . | . . . . . . . . . . . . . . . . . . Flight 11 | . . . . . . . . . . . . . . 8 3 . . Utility 66 | 2 2 10 3 17 1 1 . 8 . . . 5 . 8 5 1 3 Device 37 | 1 . 4 1 13 1 1 . 5 . . . 1 . 3 4 1 2 Storage 7 | 1 2 1 . . . . . . . . . 1 . 1 1 . . Processor 3 | . . . . . . . . 1 . . . . . 2 . . . Hackware 5 | . . . 1 . . . . . . . . 2 . 1 . . 1 Protection 14 | . . 5 1 4 . . . 2 . . . 1 . 1 . . . Artifact . | . . . . . . . . . . . . . . . . . . Weapon 72 | 2 . 20 10 13 7 . . 7 . . 1 . . 1 2 2 7 Energy Gun 1 | . . 1 . . . . . . . . . . . . . . . Energy Cannon 15 | . . 2 . 6 . . . 1 . . . . . . 2 2 2 Ballistic Gun 32 | 2 . 15 8 1 2 . . 3 . . . . . . . . 1 Ballistic Cannon 4 | . . . . . . . . . . . . . . . . . 4 Launcher 9 | . . 2 1 1 2 . . 3 . . . . . . . . . Special Weapon . | . . . . . . . . . . . . . . . . . . Impact Weapon 8 | . . . 1 5 2 . . . . . . . . . . . . Slashing Weapon 1 | . . . . . . . . . . . . . . 1 . . . Piercing Weapon 1 | . . . . . . . . . . . 1 . . . . . . Special Melee Weapon 1 | . . . . . 1 . . . . . . . . . . . . Unidentified Prototypes 15 | . . 1 1 . . . . 1 . . . 3 . 3 4 . 2 Corrupted Parts 4 | . . . . . . . . 2 . . . . . . . . 2 System Corruption 15 | . . . . . . . . 12 . . . . . . . . 3 Parts Lost 59 | . 1 4 . . 2 . . 29 . 1 . . 4 2 11 4 1 Power 7 | . 1 1 . . . . . 3 . . . . . 1 1 . . Propulsion 23 | . . 1 . . . . . 11 . . . . 3 1 5 2 . Utility 15 | . . . . . . . . 7 . 1 . . 1 . 3 2 1 Weapon 14 | . . 2 . . 2 . . 8 . . . . . . 2 . . Highest Loss Streak 17 | . 1 2 . . 2 . . 17 . 1 . . 4 1 9 3 1 To Critical Strikes 1 | . . 1 . . . . . . . . . . . . . . . Average Slot Usage (%) 76 | . 99 76 83 89 90 86 87 48 15 12 21 39 25 49 67 26 32 Engine 7 | . 13 12 7 2 . . . . . . . . . . . . . Treads 4 | . 19 4 . . . . 10 10 . . 2 5 . 2 . . 3 Leg 6 | . . 9 7 7 7 6 5 . . . 5 10 2 2 . . 6 Wheel 3 | . 8 . 7 6 7 6 5 1 . . . . . 2 . . . Device 5 | . 14 2 2 6 7 13 11 8 5 2 . . . 4 13 11 11 Storage 7 | . 14 9 7 7 7 6 5 . . . . . . . . . . Hackware 2 | . . . 4 7 7 6 5 5 5 5 5 12 11 9 7 . 1 Protection 9 | . . 11 13 12 14 13 11 5 . . . . . . . . . Energy Cannon 1 | . . 2 . 3 . . . . . . . . . . . . . Ballistic Gun 21 | . 28 21 31 28 26 20 17 8 . . . . . . . . . Naked Turns . | . . . . . . . . . . . . . . . . . . Heaviest Build 129 | 14 89 115 123 129 120 110 110 110 2 2 3 3 3 16 20 15 15 Greatest Support 94 | 40 40 55 55 55 12 12 55 94 3 3 3 3 3 48 50 16 60 Greatest Overweight (x) 10 | . 8 5 10 10 9 9 1 1 . . . . . 2 . . 4 Average Overweight (x) 2 | . 4 1 7 9 8 9 1 . . . . . . . . . . Largest Inventory Capacity 25 | 8 25 25 25 25 25 25 25 25 5 5 5 5 5 5 5 5 5 Average Capacity 20 | 7 18 21 25 25 25 25 25 8 5 5 5 5 5 5 5 5 5 Most Carried 25 | 6 22 25 25 25 25 25 25 25 2 3 3 5 5 5 5 5 4 Average Carried 19 | 3 14 21 24 24 24 24 23 7 1 2 2 4 5 4 4 4 2 Final Capacity 25 | 8 25 25 25 25 25 25 25 5 5 5 5 5 5 5 5 5 5 Final Carried 25 | 6 22 25 25 25 25 25 25 1 2 3 2 5 5 5 4 5 4 Class Distribution -------------------- 44% | Mutant 23% | Subdweller-Mutant 17% | Tank 3% | Hacker-Mutant Dominant Class ---------------- Mutant | -10/Materials Subdweller-Mutant | -10/Subcaves Tank | -8/Materials Mutant | -8/Garrison Tank | -8/Materials Mutant | -7/Factory Tank | -6/Factory Mutant | -5/Factory Mutant | -4/Factory Mutant | -4/Upper Caves Mutant | -4/Upper Caves Hacker-Mutant | -4/Zhirov Hacker-Mutant | -3/Proximity Caves Hacker-Mutant | -3/Research Scavenger-Scout | -3/Testing Scout | -2/Research Scout | -1/Access Resources | -11 -10 -10 -8 -8 -8 -7 -6 -5 -4 -4 -4 -4 -3 -3 -3 -2 -1 ----------- Run | Jun Mat Sub Mat Gar Mat Fac Fac Fac Fac Upp Upp Zhi Pro Res Tes Res Acc Matter Collected 4520 | 138 327 866 1026 582 388 17 60 350 9 1 177 60 . 165 145 . 209 Remotely . | . . . . . . . . . . . . . . . . . . Salvage Created 4246 | 91 348 720 1345 503 345 150 . 199 . . 298 118 . . 129 . . Parts 240 | 16 20 53 64 30 33 8 . 8 . . 5 1 . . 2 . . Haulers Intercepted 3 | . 1 . 2 . . . . . . . . . . . . . . Recyclers Shooed 5 | . . . 1 . . . 1 2 . . . . . . . 1 . Parts Field Recycled . | . . . . . . . . . . . . . . . . . . Retrieved Matter . | . . . . . . . . . . . . . . . . . . Parts Self-Destructed 13 | . . 9 . . . . . . . . 3 1 . . . . . Prevented 2 | . . . . . . . . . . . 2 . . . . . . Kills | -11 -10 -10 -8 -8 -8 -7 -6 -5 -4 -4 -4 -4 -3 -3 -3 -2 -1 ------- Run | Jun Mat Sub Mat Gar Mat Fac Fac Fac Fac Upp Upp Zhi Pro Res Tes Res Acc Combat Hostiles Destroyed 71 | . 7 22 21 10 9 2 . . . . . . . . . . . Melee 1 | . 1 . . . . . . . . . . . . . . . . Guns 55 | . 6 14 21 7 5 2 . . . . . . . . . . . Cannons 2 | . . 2 . . . . . . . . . . . . . . . AOE 12 | . . 5 . 3 4 . . . . . . . . . . . . Classes Destroyed 16 | 1 4 4 4 . 1 2 . . . . . . . . . . . Worker 7 | . . . 6 . . . . 1 . . . . . . . . . Tunneler 7 | 4 1 . 2 . . . . . . . . . . . . . . Hauler 3 | . 1 . 2 . . . . . . . . . . . . . . Recycler 6 | . 1 . 1 . 1 1 . 1 . . . . . . 1 . . Mechanic 2 | . . . . . 1 . . 1 . . . . . . . . . Turret 1 | . . 1 . . . . . . . . . . . . . . . Watcher 4 | . . . 2 1 1 . . . . . . . . . . . . Swarmer 18 | . 3 6 4 . 5 . . . . . . . . . . . . Grunt 20 | . 4 . 10 5 1 . . . . . . . . . . . . Brawler 1 | . . . 1 . . . . . . . . . . . . . . Duelist 1 | . . . 1 . . . . . . . . . . . . . . Sentry 14 | . . 1 5 5 3 . . . . . . . . . . . . Hunter 1 | . . . . . . 1 . . . . . . . . . . . Programmer 1 | . . . . . . 1 . . . . . . . . . . . Artisan 2 | . . 2 . . . . . . . . . . . . . . . Subdweller 16 | . . 15 1 . . . . . . . . . . . . . . Best Kill Streak 6 | 2 3 4 3 3 6 2 . 2 . . . . . . 1 . . Combat Bots Only 4 | . 2 4 3 3 4 1 . . . . . . . . . . . Max Kills in Single Turn 3 | 1 1 3 2 3 3 2 . 2 . . . . . . 1 . . Gunslinging . | . . . . . . . . . . . . . . . . . . Exploded 3 | . . 3 . 3 3 . . . . . . . . . . . . Melee 1 | . 1 . . . . . . . . . . . . . . . . Uniques/NPCs Destroyed . | . . . . . . . . . . . . . . . . . . Combat | -11 -10 -10 -8 -8 -8 -7 -6 -5 -4 -4 -4 -4 -3 -3 -3 -2 -1 -------- Run | Jun Mat Sub Mat Gar Mat Fac Fac Fac Fac Upp Upp Zhi Pro Res Tes Res Acc Damage Taken 13312 | . 478 1870 979 629 172 148 . 4479 161 331 . . 717 792 1199 696 661 Core 2937 | . 92 80 49 71 30 17 . 762 55 287 . . 507 304 201 439 43 Absorbed by Shields 142 | . . . . 127 . . . 15 . . . . . . . . . Redirected to Shielding 143 | . . . . . . . . . . . . . . 143 . . . Core Remaining (%) 67 | 100 . 31 . . 72 97 100 23 . . . . 26 . 55 69 97 Volleys Fired 362 | 7 37 133 53 44 10 5 . 53 . . . . . . 1 2 17 Largest 5 | 2 2 2 5 5 4 3 . 4 . . . . . . 1 1 1 Hottest 196 | 40 40 110 124 196 106 81 . 113 . . . . . . 130 130 130 Shots Fired 813 | 14 73 198 213 126 30 15 . 124 . . . . . . 1 2 17 Gun 727 | 14 73 170 212 108 27 15 . 107 . . . . . . . . 1 Cannon 75 | . . 25 . 16 . . . 15 . . . . . . 1 2 16 Launcher 11 | . . 3 1 2 3 . . 2 . . . . . . . . . Special . | . . . . . . . . . . . . . . . . . . Kinetic 749 | 14 73 172 213 110 29 15 . 108 . . . . . . . . 15 Thermal 61 | . . 25 . 16 . . . 15 . . . . . . 1 2 2 Explosive 2 | . . . . . 1 . . 1 . . . . . . . . . Electromagnetic 1 | . . 1 . . . . . . . . . . . . . . . Robot Hit Streak 19 | 6 14 15 12 10 5 2 . 19 . . . . . . . . 5 Robot Miss Streak 5 | 1 2 3 4 5 2 4 . 2 . . . . . . . . 3 Penetration Max 1 | . . . . . 1 1 . . . . . . . . . . . Secondary Targets 4 | . . . 3 . 1 . . . . . . . . . . . . Max Gunslinging Chain 1 | . . . 1 . 1 . . . . . . . . . . . . Shots Hit Robots 511 | 11 54 101 141 70 12 7 . 99 . . 6 1 . 1 2 . 6 Core Hits 200 | 6 19 40 60 28 16 4 . 22 . . 1 1 . . . . 3 Critical Kills 2 | . . 1 1 . . . . . . . . . . . . . . Critical Parts Destroyed 3 | . . . 3 . . . . . . . . . . . . . . Critical Strikes 13 | . . 2 4 . . . . 2 . . 1 . . 1 1 . 2 Meltdown 1 | . . 1 . . . . . . . . . . . . . . . Destroy 6 | . . 1 3 . . . . 2 . . . . . . . . . Blast 2 | . . . . . . . . . . . . . . . . . 2 Smash 1 | . . . 1 . . . . . . . . . . . . . . Impale 3 | . . . . . . . . . . . 1 . . 1 1 . . Melee Attacks 93 | . . . 18 24 2 2 . . . . 6 2 . 16 23 . . Impact 44 | . . . 18 24 2 . . . . . . . . . . . . Slashing 8 | . . . . . . . . . . . . . . 2 6 . . Piercing 39 | . . . . . . . . . . . 6 2 . 14 17 . . Sneak Attacks 13 | . . . 9 . . 2 . . . . . . . . 2 . . Combat Hostiles . | . . . . . . . . . . . . . . . . . . Follow-up Attacks . | . . . . . . . . . . . . . . . . . . Damage Inflicted 10192 | 120 548 2064 3056 1577 657 118 16 1155 6 . 360 68 . 35 107 41 264 Guns 6492 | 120 542 1502 2102 1111 268 118 . 694 . . . . . . . . 35 Cannons 730 | . . 196 . 104 . . . 201 . . . . . . . . 229 Explosions 1437 | . . 366 95 362 389 . . 225 . . . . . . . . . Melee 1406 | . . . 836 . . . . . . . 360 68 . 35 107 . . Ramming 127 | . 6 . 23 . . . 16 35 6 . . . . . . 41 . Kinetic 7993 | 120 542 1856 2180 1473 553 118 . 887 . . . . . . . . 264 Thermal 501 | . . 196 . 104 . . . 201 . . . . . . . . . Explosive 136 | . . . . . 104 . . 32 . . . . . . . . . Electromagnetic 29 | . . 12 17 . . . . . . . . . . . . . . Impact 836 | . . . 836 . . . . . . . . . . . . . . Slashing . | . . . . . . . . . . . . . . . . . . Piercing 570 | . . . . . . . . . . . 360 68 . 35 107 . . Highest Corruption 23 | . . . 2 2 2 2 . 23 . . . . 8 . 3 5 5 Average Corruption 3 | . . . 2 2 2 2 . 19 . . . . 5 . 2 5 4 Corruption Purged . | . . . . . . . . . . . . . . . . . . Corruption Blocked . | . . . . . . . . . . . . . . . . . . Effects 54 | . . . 2 18 6 . . 15 . . . . 4 . 2 2 5 Message Errors 13 | . . . 1 4 2 . . 4 . . . . . . 1 1 . Matter Fused 13 | . . . . 4 1 . . 4 . . . . 2 . . 1 1 Heat Flow Errors 7 | . . . 1 2 2 . . 1 . . . . . . 1 . . Energy Discharges 4 | . . . . 2 1 . . . . . . . . . . . 1 Parts Rejected 1 | . . . . . . . . 1 . . . . . . . . . Parts Fused 3 | . . . . 3 . . . . . . . . . . . . . Data Loss (minor) 2 | . . . . . . . . . . . . . 1 . . . 1 Data Loss (major) 4 | . . . . 1 . . . 1 . . . . 1 . . . 1 Misdirections 4 | . . . . . . . . 4 . . . . . . . . . Weapon Failures 3 | . . . . 2 . . . . . . . . . . . . 1 Overload Shots . | . . . . . . . . . . . . . . . . . . Overflow Damage 695 | . . 9 377 5 26 . . 25 . . 162 . . . 91 . . Projectiles . | . . . . . . . . . . . . . . . . . . Explosions 82 | . . 9 17 5 26 . . 25 . . . . . . . . . Melee 613 | . . . 360 . . . . . . . 162 . . . 91 . . Knockbacks 4 | . . . 2 . . . . 1 . . . . . . . . 1 Impact 3 | . . . 2 . . . . 1 . . . . . . . . . Kinetic 1 | . . . . . . . . . . . . . . . . . 1 Secondary . | . . . . . . . . . . . . . . . . . . Self-Inflicted Damage 133 | . . 25 . . 36 . . 52 3 . . . . . . 17 . Shots 4 | . . 1 . . 1 . . 2 . . . . . . . . . Rammed 26 | . 1 . . . . . . 20 1 . . . . . . 4 . Targets Rammed 38 | . 2 . 5 . . . 3 20 1 . . . . . . 7 . Kicked 11 | . . . 5 . . . 3 . . . . . . . . 3 . Crushed 1 | . 1 . . . . . . . . . . . . . . . . Highest Temperature 559 | . 18 30 206 369 268 54 . 559 . 336 . . . . 198 16 . Average Temperature 97 | . 8 18 53 107 85 23 . 192 . 174 . . . . 89 12 . Received Heat Transfer 3344 | . 237 276 369 265 45 18 . 1443 . 409 . . 12 18 180 . 72 Effects 7 | . . . . . . . . 7 . . . . . . . . . Shutdowns 1 | . . . . . . . . 1 . . . . . . . . . Energy Bleed 2 | . . . . . . . . 2 . . . . . . . . . Interference 3 | . . . . . . . . 3 . . . . . . . . . Matter Decay 1 | . . . . . . . . 1 . . . . . . . . . Siege Activations . | . . . . . . . . . . . . . . . . . . Robots Corrupted . | . . . . . . . . . . . . . . . . . . Combat Hostiles . | . . . . . . . . . . . . . . . . . . Parts Fried 10 | . . . 10 . . . . . . . . . . . . . . Impact Corruptions 12 | . . . 12 . . . . . . . . . . . . . . Robots Melted 1 | . . 1 . . . . . . . . . . . . . . . Combat Hostiles 1 | . . 1 . . . . . . . . . . . . . . . Parts Melted 2 | . . 2 . . . . . . . . . . . . . . . Heat Transferred 516 | . . 259 . 111 . . . 146 . . . . . . . . . Parts Sabotaged . | . . . . . . . . . . . . . . . . . . Parts Stolen . | . . . . . . . . . . . . . . . . . . Parts Stripped . | . . . . . . . . . . . . . . . . . . Power Chain Reactions . | . . . . . . . . . . . . . . . . . . Missiles Intercepted . | . . . . . . . . . . . . . . . . . . Alert | -11 -10 -10 -8 -8 -8 -7 -6 -5 -4 -4 -4 -4 -3 -3 -3 -2 -1 ------- Run | Jun Mat Sub Mat Gar Mat Fac Fac Fac Fac Upp Upp Zhi Pro Res Tes Res Acc Peak Influence 1094 | 20 146 . 523 1094 855 334 79 55 15 . . . . 72 246 165 560 Initial 533 | . 13 . 291 312 533 298 79 38 14 . . . . 20 18 112 98 Average 306 | 7 62 . 282 752 684 295 79 12 9 . . . . 28 150 127 385 Maximum Alert Level 3 | . . . 2 3 3 1 . . . . . . . . 1 . 2 Low Security (%) 43 | 100 100 . 18 . . 6 100 100 100 . . . . 100 73 100 13 Level 1 31 | . . . 75 8 . 93 . . . . . . . . 26 . 36 Level 2 12 | . . . 5 28 61 . . . . . . . . . . . 49 Level 3 12 | . . . . 62 38 . . . . . . . . . . . . Level 4 . | . . . . . . . . . . . . . . . . . . Level 5 . | . . . . . . . . . . . . . . . . . . High Security . | . . . . . . . . . . . . . . . . . . Max Security . | . . . . . . . . . . . . . . . . . . Squads Dispatched 29 | . 1 . 5 . 4 3 1 3 2 . . . . 2 2 2 4 Investigation 9 | . 1 . . . 2 . 1 1 . . . . . 2 . 1 1 Extermination 3 | . . . . . . . . 2 . . . . . . . . 1 Reinforcement 11 | . . . 2 . 2 . . . 2 . . . . . 2 1 2 Assault . | . . . . . . . . . . . . . . . . . . Garrison 6 | . . . 3 . . 3 . . . . . . . . . . . Intercept . | . . . . . . . . . . . . . . . . . . Searches Triggered . | . . . . . . . . . . . . . . . . . . Construction Impeded 1 | . . . . . . . . . . . . . . . 1 . . Haulers Reinforced . | . . . . . . . . . . . . . . . . . . Active Scanning Responses . | . . . . . . . . . . . . . . . . . . Cargo Convoy Interrupts . | . . . . . . . . . . . . . . . . . . Stealth | -11 -10 -10 -8 -8 -8 -7 -6 -5 -4 -4 -4 -4 -3 -3 -3 -2 -1 --------- Run | Jun Mat Sub Mat Gar Mat Fac Fac Fac Fac Upp Upp Zhi Pro Res Tes Res Acc Distress Signals 17 | . 1 . 4 1 2 1 . . . . . . . 3 2 . 3 Communications Jammed 18 | . . . . 2 . 1 . . . . . . . . . . 15 Distress Signals 18 | . . . . 2 . 1 . . . . . . . . . . 15 Times Spotted 249 | . 23 41 44 16 13 8 4 5 3 6 3 . 6 18 31 11 17 Peak Tracking Total 13 | . 4 5 4 4 5 1 2 4 2 6 3 . 6 8 13 7 6 Tactical Retreats 18 | . 2 2 2 1 . . . 1 . 1 1 . 1 2 . 3 2 Traps | -11 -10 -10 -8 -8 -8 -7 -6 -5 -4 -4 -4 -4 -3 -3 -3 -2 -1 ------- Run | Jun Mat Sub Mat Gar Mat Fac Fac Fac Fac Upp Upp Zhi Pro Res Tes Res Acc Traps Triggered 21 | . . 3 1 12 1 . . 1 . . . . . 2 1 . . Indirectly . | . . . . . . . . . . . . . . . . . . Trap Hack Attempts . | . . . . . . . . . . . . . . . . . . Triggered . | . . . . . . . . . . . . . . . . . . Disarmed . | . . . . . . . . . . . . . . . . . . Reprogrammed . | . . . . . . . . . . . . . . . . . . Reused . | . . . . . . . . . . . . . . . . . . Traps Extracted . | . . . . . . . . . . . . . . . . . . Installed 1 | . . 1 . . . . . . . . . . . . . . . Triggered 4 | . . 1 . . . . . . . . 2 . 1 . . . . Most Traps Carried 1 | . . 1 . . . . . . . . . . . . . . . Machines | -11 -10 -10 -8 -8 -8 -7 -6 -5 -4 -4 -4 -4 -3 -3 -3 -2 -1 ---------- Run | Jun Mat Sub Mat Gar Mat Fac Fac Fac Fac Upp Upp Zhi Pro Res Tes Res Acc Machines Disabled 24 | . . 2 3 9 . . . 2 . . . 1 . . 5 . 2 Max in Single Turn 1 | . . 1 1 1 . . . 1 . . . 1 . . 1 . 1 Garrison Relay 5 | . . . . 5 . . . . . . . . . . . . . Energy Cycler 1 | . . . . . . . . . . . . . . . . . 1 Machines Repaired . | . . . . . . . . . . . . . . . . . . Machines Sabotaged . | . . . . . . . . . . . . . . . . . . Overloaded Fab Kills . | . . . . . . . . . . . . . . . . . . Hacking | -11 -10 -10 -8 -8 -8 -7 -6 -5 -4 -4 -4 -4 -3 -3 -3 -2 -1 --------- Run | Jun Mat Sub Mat Gar Mat Fac Fac Fac Fac Upp Upp Zhi Pro Res Tes Res Acc Machines Accessed 43 | . 10 2 8 3 2 . 1 1 . . . 4 . 4 6 1 1 Terminals 27 | . 8 . 5 3 2 . . . . . . . . 2 6 . 1 Fabricators 3 | . . . . . . . 1 . . . . . . 2 . . . Repair Stations 2 | . 1 . . . . . . . . . . . . . . 1 . Recycling Units 3 | . 1 . 1 . . . . 1 . . . . . . . . . Scanalyzers 1 | . . . 1 . . . . . . . . . . . . . . Garrison Access 1 | . . . 1 . . . . . . . . . . . . . . Total Hacks 128 | . 26 11 20 5 6 . 2 2 . . . 17 . 8 27 2 2 Successful 79 | . 12 11 15 2 4 . 2 1 . . . 17 . 5 10 . . Failed 49 | . 14 . 5 3 2 . . 1 . . . . . 3 17 2 2 Catastrophic 14 | . . . 1 1 1 . . 1 . . . . . 2 5 1 2 Database Lockouts . | . . . . . . . . . . . . . . . . . . Manual 55 | . 14 . 10 . 5 . 1 . . . . . . 4 21 . . Terminals 81 | . 24 . 15 5 6 . . . . . . . . 2 27 . 2 Fabricators 8 | . . . . . . . 2 . . . . . . 6 . . . Repair Stations 3 | . 1 . . . . . . . . . . . . . . 2 . Recycling Units 4 | . 1 . 1 . . . . 2 . . . . . . . . . Scanalyzers 2 | . . . 2 . . . . . . . . . . . . . . Garrison Access 2 | . . . 2 . . . . . . . . . . . . . . Terminal Hacks 48 | . 7 11 6 2 2 . . . . . . 17 . . 3 . . Record 15 | . . 10 . . . . . . . . . 5 . . . . . Part Schematic 7 | . 1 . 1 . . . . . . . . 4 . . 1 . . Robot Schematic 1 | . 1 . . . . . . . . . . . . . . . . Robot Analysis 6 | . 1 . 1 . . . . . . . . 4 . . . . . Prototype ID Bank 9 | . 2 . 2 . 1 . . . . . . 4 . . . . . Open Door 1 | . . . . 1 . . . . . . . . . . . . . Emergency Access Points 1 | . . . . 1 . . . . . . . . . . . . . Terminal Index 2 | . 1 . . . . . . . . . . . . . 1 . . Alert Level 1 | . . . . . . . . . . . . . . . 1 . . Unreport Threat 1 | . . . 1 . . . . . . . . . . . . . . Locate Traps 1 | . 1 . . . . . . . . . . . . . . . . Recall Investigation 1 | . . . . . 1 . . . . . . . . . . . . Zone Layout 1 | . . . 1 . . . . . . . . . . . . . . Derelict Proto ID Bank 1 | . . 1 . . . . . . . . . . . . . . . Fabricator Hacks 5 | . . . . . . . 1 . . . . . . 4 . . . Network Status 1 | . . . . . . . . . . . . . . 1 . . . Load Schematic 3 | . . . . . . . 1 . . . . . . 2 . . . Build 1 | . . . . . . . . . . . . . . 1 . . . Repair Station Hacks . | . . . . . . . . . . . . . . . . . . Recycling Unit Hacks 2 | . . . 1 . . . . 1 . . . . . . . . . Retrieve Matter 1 | . . . 1 . . . . . . . . . . . . . . Retrieve Components 1 | . . . . . . . . 1 . . . . . . . . . Scanalyzer 2 | . . . 2 . . . . . . . . . . . . . . Insert Component 1 | . . . 1 . . . . . . . . . . . . . . Analyze 1 | . . . 1 . . . . . . . . . . . . . . Garrison Access Hacks 1 | . . . 1 . . . . . . . . . . . . . . Unlock Access 1 | . . . 1 . . . . . . . . . . . . . . Unauthorized Hacks 21 | . 5 . 5 . 2 . 1 . . . . . . 1 7 . . Terminals 18 | . 4 . 5 . 2 . . . . . . . . . 7 . . Track 2 | . . . . . . . . . . . . . . . 2 . . Assimilate 2 | . . . 1 . . . . . . . . . . . 1 . . Botnet 10 | . 3 . 3 . 1 . . . . . . . . . 3 . . Operators 4 | . 1 . 1 . 1 . . . . . . . . . 1 . . Fabricators 2 | . . . . . . . 1 . . . . . . 1 . . . Recompile 2 | . . . . . . . 1 . . . . . . 1 . . . Repair Stations . | . . . . . . . . . . . . . . . . . . Recycling Units 1 | . 1 . . . . . . . . . . . . . . . . Tunnel 1 | . 1 . . . . . . . . . . . . . . . . Scanalyzers . | . . . . . . . . . . . . . . . . . . Garrison Access . | . . . . . . . . . . . . . . . . . . Data Cores Recovered . | . . . . . . . . . . . . . . . . . . Used . | . . . . . . . . . . . . . . . . . . Hacking Detections 29 | . 8 . 6 3 2 . . 1 . . . . . 2 5 1 1 Full Trace Events 3 | . . . . . . . . 1 . . . . . . . 1 1 Feedback Events 1 | . . . . . . . . . . . . . . . . . 1 Corruption 1 | . . . . . . . . . . . . . . . . . 1 Feedback Blocked . | . . . . . . . . . . . . . . . . . . Robot Schematics Acquired 1 | . 1 . . . . . . . . . . . . . . . . Robots Built . | . . . . . . . . . . . . . . . . . . Authchips . | . . . . . . . . . . . . . . . . . . Time . | . . . . . . . . . . . . . . . . . . Total Robot Build Rating . | . . . . . . . . . . . . . . . . . . Part Schematics Acquired 8 | . 1 . 2 . . . . . . . . 4 . . 1 . . Parts Built 1 | . . . . . . . . . . . . . . 1 . . . Authchips 1 | . . . . . . . . . . . . . . 1 . . . Time 62 | . . . . . . . . . . . . . . 62 . . . Total Part Build Rating 7 | . . . . . . . . . . . . . . 7 . . . Parts Repaired . | . . . . . . . . . . . . . . . . . . Time . | . . . . . . . . . . . . . . . . . . Parts Recycled . | . . . . . . . . . . . . . . . . . . Recycled Matter . | . . . . . . . . . . . . . . . . . . Retrieved Matter . | . . . . . . . . . . . . . . . . . . Retrieved Components 7 | . . . . . . . . 7 . . . . . . . . . Parts Scanalyzed 1 | . . . 1 . . . . . . . . . . . . . . Part Schematics Acquired 1 | . . . 1 . . . . . . . . . . . . . . Parts Damaged . | . . . . . . . . . . . . . . . . . . Bothacking | -11 -10 -10 -8 -8 -8 -7 -6 -5 -4 -4 -4 -4 -3 -3 -3 -2 -1 ------------ Run | Jun Mat Sub Mat Gar Mat Fac Fac Fac Fac Upp Upp Zhi Pro Res Tes Res Acc Used RIF Installer . | . . . . . . . . . . . . . . . . . . Robots Hacked 2 | . . . . . . 2 . . . . . . . . . . . Non-combat 1 | . . . . . . 1 . . . . . . . . . . . Combat 1 | . . . . . . 1 . . . . . . . . . . . Robot Hacks Applied 2 | . . . . . . 2 . . . . . . . . . . . parse_system 1 | . . . . . . 1 . . . . . . . . . . . no_distress 1 | . . . . . . 1 . . . . . . . . . . . Relay Couplers Released 21 | . . . . 21 . . . . . . . . . . . . . Machine Destruction 21 | . . . . 21 . . . . . . . . . . . . . Fabnet Peak Effective % . | . . . . . . . . . . . . . . . . . . Robots Rewired . | . . . . . . . . . . . . . . . . . . Allies Hacked . | . . . . . . . . . . . . . . . . . . Hacks Repelled . | . . . . . . . . . . . . . . . . . . Allies | -11 -10 -10 -8 -8 -8 -7 -6 -5 -4 -4 -4 -4 -3 -3 -3 -2 -1 -------- Run | Jun Mat Sub Mat Gar Mat Fac Fac Fac Fac Upp Upp Zhi Pro Res Tes Res Acc Total Allies 11 | . . 4 1 2 . . . . . . . . . . 1 . 3 Largest Group 3 | . . 3 2 2 . . . . . . . . . . 1 . 3 Highest-Rated Group 379 | . . 57 38 51 . . . . . . . . . . 10 . 379 Highest-Rated Ally 135 | . . 19 19 31 . . . . . . . . . . 10 . 135 Warlord Squad Rendezvous 2 | . . . . . . . . . . . . . . 2 . . . Infantry 1 | . . . . . . . . . . . . . . 1 . . . Ranger 1 | . . . . . . . . . . . . . . 1 . . . Total Orders 33 | . . . 8 . . . . 3 9 3 . . . . 10 . . STAY 7 | . . . 5 . . . . . 1 . . . . . 1 . . FOLLOW 5 | . . . 3 . . . . . 1 . . . . . 1 . . EXPLORE 10 | . . . . . . . . 2 6 2 . . . . . . . RETURN 11 | . . . . . . . . 1 1 1 . . . . 8 . . Ally Attacks 148 | . . 11 18 16 . . . . . . . . . . 51 . 52 Total Damage 4022 | . . 135 216 456 . . . . . . . . . . 888 . 2327 Kills 30 | . . 1 6 4 . . . . . . . . . . 6 . 13 Allies Corrupted . | . . . . . . . . . . . . . . . . . . Allies Melted . | . . . . . . . . . . . . . . . . . . Intel | -11 -10 -10 -8 -8 -8 -7 -6 -5 -4 -4 -4 -4 -3 -3 -3 -2 -1 ------- Run | Jun Mat Sub Mat Gar Mat Fac Fac Fac Fac Upp Upp Zhi Pro Res Tes Res Acc Robot Analysis Total 6 | . 1 . 1 . . . . . . . . 4 . . . . . Derelict Logs Recovered 2 | . . 2 . . . . . . . . . . . . . . . Drone Launches 28 | . . . . . . . . 13 2 3 . . . . 10 . . Drone Recoveries 16 | . . . . . . . . 4 1 2 . . . . 9 . . Exploration | -11 -10 -10 -8 -8 -8 -7 -6 -5 -4 -4 -4 -4 -3 -3 -3 -2 -1 ------------- Run | Jun Mat Sub Mat Gar Mat Fac Fac Fac Fac Upp Upp Zhi Pro Res Tes Res Acc Turns Passed 17809 | 140 1498 7788 2939 1552 622 429 302 551 66 112 175 220 128 426 364 208 289 Spaces Moved 9159 | 67 703 3336 954 537 251 178 138 356 90 214 282 148 255 690 532 179 249 Core 1939 | 4 . . . . . . . 273 90 214 282 148 255 374 . 89 210 Treads 987 | 63 263 600 . . . . . 22 . . . . . . . . 39 Legs 3192 | . . 2688 313 6 . . 138 47 . . . . . . . . . Wheels 2103 | . 440 48 641 531 251 178 . 14 . . . . . . . . . Hover . | . . . . . . . . . . . . . . . . . . Flight 938 | . . . . . . . . . . . . . . 316 532 90 . Fastest Speed 28 | 50 130 130 205 210 210 225 200 50 50 50 50 50 50 28 29 45 50 Average Speed 161 | 153 182 210 247 229 222 225 200 84 50 50 50 50 50 43 38 47 69 Slowest Speed 320 | 160 200 320 270 270 225 225 200 225 50 50 50 50 50 150 45 50 250 Overloaded Moves . | . . . . . . . . . . . . . . . . . . Propulsion Burnouts . | . . . . . . . . . . . . . . . . . . Robots Hopped 9 | . . . . . . . . . 3 . . . . 1 5 . . Cave-ins Triggered . | . . . . . . . . . . . . . . . . . . Teleports 1 | . . . . . . . . . . . . . . . 1 . . Exploration Rate (%) 41 | 4 100 96 57 69 39 7 6 15 10 56 53 60 60 18 86 7 9 Regions Visited 17 Branch Regions 6 Pre-discovered Areas 7 | . 1 2 . . . . . . . 1 . 3 . . . . . Known Exits Taken 4 | . . . 1 . . . . . . . . . . 1 1 1 . Unknown Exits Taken 12 | 1 1 1 . . 1 1 1 1 1 1 1 1 1 . . . . Scrap Searched 13 | . . 13 . . . . . . . . . . . . . . . Spaces Dug 102 | . . 46 5 14 10 . . 5 . . . . . 8 7 1 6 Terrain Destroyed 201 | . . 64 10 25 52 1 . 17 . . . . . 8 7 1 16 Melee 36 | . . . 5 14 2 . . . . . . . . 8 7 . . Projectile 43 | . . 16 . 5 6 1 . 7 . . . . . . . 1 7 AOE 122 | . . 48 5 6 44 . . 10 . . . . . . . . 9 Terrain Rammed . | . . . . . . . . . . . . . . . . . . Walls Destroyed . | . . . . . . . . . . . . . . . . . . Machines Disabled . | . . . . . . . . . . . . . . . . . . Actions | -11 -10 -10 -8 -8 -8 -7 -6 -5 -4 -4 -4 -4 -3 -3 -3 -2 -1 --------- Run | Jun Mat Sub Mat Gar Mat Fac Fac Fac Fac Upp Upp Zhi Pro Res Tes Res Acc Total 11378 | 88 851 3930 1388 734 294 197 162 500 107 218 300 288 254 774 646 299 348 Wait 1179 | 2 80 305 287 24 11 11 18 26 19 4 9 127 . 38 56 104 58 Move 9125 | 66 702 3335 954 536 250 177 137 355 83 213 281 147 254 687 522 178 248 Hop 8 | . . . . . . . . . 3 . . . . 1 4 . . Pick Up 134 | 6 17 49 24 7 6 1 2 2 1 1 . 2 . 4 8 1 3 Fast Attach 78 | 7 1 7 1 1 . . . 17 . . 3 5 . 18 9 2 7 Attach 45 | . . 10 6 1 1 1 2 5 . . 1 1 . 3 5 2 7 Detach 20 | . . 3 . . . . . 3 . . . 3 . . 3 2 6 Swap 77 | . 7 20 9 32 7 . . 2 . . . . . . . . . Drop 111 | . 5 39 24 9 7 . . 1 . . . 1 . 8 14 1 2 Fire 362 | 7 37 133 53 44 10 5 . 53 . . . . . . 1 2 17 Melee 87 | . . . 18 24 2 2 . . . . 6 2 . 15 18 . . Ram 5 | . . . . . . . . . 1 . . . . . . 4 . Kick 10 | . . . 4 . . . 3 . . . . . . . . 3 . Crush 22 | . 2 . . . . . . 20 . . . . . . . . . Escape Stasis 75 | . . . . 56 . . . 13 . . . . . . 6 . . Rewire . | . . . . . . . . . . . . . . . . . . Trap 1 | . . 1 . . . . . . . . . . . . . . . Miscellaneous 39 | . . 28 8 . . . . 3 . . . . . . . . . Route ------- -11/Junkyard -10/Materials (discovered 6 exits: [*Mat x3] / [*Min x2] / *Sub) -10/Subcaves (discovered 3 exits: *Mat x2 / [*Rec]) -8/Materials (discovered 2 exits: [*Fac] / Gar) -8/Garrison (discovered 2 exits: *Mat x2) -8/Materials -7/Factory -6/Factory -5/Factory -4/Factory -4/Upper Caves -4/Upper Caves -4/Zhirov -3/Proximity Caves -3/Research -3/Testing -2/Research -1/Access (discovered 2 exits: *Sur / Com) To Epsilon Eridani History --------- Turn | Location | Event 39 | -11/Junkyard | Discovered new exit (range 16) 141 | -11/Junkyard | Entered Materials 175 | -10/Materials | Discovered new exit (range 3) 256 | -10/Materials | Discovered new exit (range 5) 316 | -10/Materials | Build established: Mutant 440 | -10/Materials | Discovered new exit (range 5) 814 | -10/Materials | Discovered new exit (range 13) 1111 | -10/Materials | Discovered new exit (range 16) 1587 | -10/Materials | Discovered new exit (range 10) 1639 | -10/Materials | Entered Subcaves 2329 | -10/Subcaves | Shifting Twisted Machinery released Piercing Trap 2330 | -10/Subcaves | Shifting Twisted Machinery released Sub. Power Source 2760 | -10/Subcaves | Learned location of Zion (-6) 2890 | -10/Subcaves | Visited 4L-MR0's lab 2912 | -10/Subcaves | Found Cargo Legs 2913 | -10/Subcaves | Attached Cargo Legs, gained temporary slots: Utility x2 3933 | -10/Subcaves | Core integrity fell below 50% 4734 | -10/Subcaves | Visited triangular shrine 4746 | -10/Subcaves | Found Prototype Device 4877 | -10/Subcaves | Met a Zionite searching for "candidates" 4923 | -10/Subcaves | A swath of the cavern ceiling suddenly collapsed 4991 | -10/Subcaves | Ambushed by Subdweller buried in earth 4998 | -10/Subcaves | Ambushed by Subdweller buried in earth 5057 | -10/Subcaves | A swath of the cavern ceiling suddenly collapsed 5335 | -10/Subcaves | Build established: Subdweller-Mutant 5399 | -10/Subcaves | Shifting Twisted Machinery released Sub. Laser 5403 | -10/Subcaves | Discovered new exit (range 10) 5404 | -10/Subcaves | Shifting Twisted Machinery released Sub. Power Source 5712 | -10/Subcaves | Discovered new exit (range 16) 5980 | -10/Subcaves | A Subdweller sparked back to life 5980 | -10/Subcaves | A Subdweller sparked back to life 5992 | -10/Subcaves | Identified V3-11A's Pendant 5997 | -10/Subcaves | Befriended Subdweller 5997 | -10/Subcaves | Befriended Subdweller 5997 | -10/Subcaves | Befriended Subdweller 6025 | -10/Subcaves | Learned Materials stockpile data 6557 | -10/Subcaves | Shifting Twisted Machinery released Battle Rifle 6625 | -10/Subcaves | Found Gun Armor 6632 | -10/Subcaves | Discovered new exit (range 16) 7654 | -10/Subcaves | Visited Clippyterm 7660 | -10/Subcaves | Learned Factory emergency access door positions 7956 | -10/Subcaves | Ambushed by Subdweller buried in earth 7963 | -10/Subcaves | Befriended Subdweller 9427 | -10/Subcaves | Entered Materials 9427 | -8/Materials | Accompanied by 2 allies 9427 | -8/Materials | Evolved 4 slots: Propulsion x1, Utility x2, Weapon x1 9745 | -8/Materials | Attached Gun Armor, gained temporary slots: Weapon x2 10330 | -8/Materials | Build established: Tank 10690 | -8/Materials | Build established: Derelict-Tank 10892 | -8/Materials | Discovered new exit (range 16) 11153 | -8/Materials | Build established: Derelict-Mutant 11618 | -8/Materials | Build established: Mutant 12104 | -8/Materials | Build established: Tank 12166 | -8/Materials | Garrison activated, responded to threat 12289 | -8/Materials | Identified exit to Garrison 12366 | -8/Materials | Entered Garrison 12412 | -8/Garrison | Rescued a captive Derelict 12418 | -8/Garrison | Spotted B-75 Beast 12419 | -8/Garrison | Rescued a captive Derelict 12441 | -8/Garrison | Allies destroyed B-75 Beast 12518 | -8/Garrison | Triggered checkpoint 12638 | -8/Garrison | Garrison Relay disabled 12718 | -8/Garrison | Garrison Relay disabled 12729 | -8/Garrison | Garrison Relay disabled 12843 | -8/Garrison | Build established: Mutant 12934 | -8/Garrison | Triggered checkpoint 13088 | -8/Garrison | Triggered checkpoint 13123 | -8/Garrison | Garrison Relay disabled 13247 | -8/Garrison | Discovered new exit (range 12) 13462 | -8/Garrison | Discovered new exit (range 10) 13624 | -8/Garrison | Triggered checkpoint 13777 | -8/Garrison | Garrison Relay disabled 13918 | -8/Garrison | Entered Materials 14287 | -8/Materials | Build established: Tank 14388 | -8/Materials | Met 7R-MNS 14488 | -8/Materials | Discovered new exit (range 15) 14534 | -8/Materials | Found Prototype Device 14540 | -8/Materials | Entered Factory 14540 | -7/Factory | Evolved 2 slots: Utility x2 14541 | -7/Factory | Caught up to 7R-MNS 14702 | -7/Factory | Garrison activated, responded to threat 14809 | -7/Factory | Build established: Mutant 14926 | -7/Factory | Discovered new exit (range 10) 14969 | -7/Factory | Entered another Factory area 14969 | -6/Factory | Evolved 2 slots: Propulsion x2 14970 | -6/Factory | Caught up to 7R-MNS 15143 | -6/Factory | Build established: Tank 15255 | -6/Factory | Discovered new exit (range 5) 15271 | -6/Factory | Entered another Factory area 15271 | -5/Factory | Evolved 2 slots: Propulsion x1, Utility x1 15272 | -5/Factory | Caught up to 7R-MNS 15339 | -5/Factory | Spotted B-75 Beast 15371 | -5/Factory | Attacked by 7R-MNS 15423 | -5/Factory | Lost 4 parts (1n2u1w) 15603 | -5/Factory | 7R-MNS lamented failing the tripod run 15604 | -5/Factory | Found Corrupted Multitargeting Array 15607 | -5/Factory | Lost 17 parts (2p6n4u5w) 15624 | -5/Factory | System corruption reached 10% 15629 | -5/Factory | Core integrity fell below 50% 15644 | -5/Factory | Identified Active Sensor Suite 15659 | -5/Factory | Lost 7 parts (1p3n1u2w) 15792 | -5/Factory | Discovered new exit (range 10) 15808 | -5/Factory | Build established: Mutant 15822 | -5/Factory | Entered another Factory area 15822 | -4/Factory | Accompanied by 6 allies 15822 | -4/Factory | Evolved 2 slots: Power x1, Propulsion x1 15882 | -4/Factory | Discovered new exit (range 14) 15888 | -4/Factory | Entered Upper Caves 15905 | -4/Upper Caves | Met a Warlord Commander 15908 | -4/Upper Caves | Found Encrypted Comm Array 15945 | -4/Upper Caves | Spotted B-86 Titan 15990 | -4/Upper Caves | Attracted the attention of an 0b10 checkpoint 15994 | -4/Upper Caves | Discovered new exit (range 11) 16000 | -4/Upper Caves | Entered another Upper Caves area 16049 | -4/Upper Caves | Encountered a Warlord checkpoint 16170 | -4/Upper Caves | Discovered new exit (range 9) 16175 | -4/Upper Caves | Entered Zhirov 16175 | -4/Zhirov | Discovered new exit (range 3) 16185 | -4/Zhirov | Met Zhirov 16202 | -4/Zhirov | Learned location of Quarantine (-2) 16202 | -4/Zhirov | Learned location of Testing (-3) 16202 | -4/Zhirov | Learned location of Command (-1) 16205 | -4/Zhirov | Zhirov requested help retrieving the SGEMP Prototype 16213 | -4/Zhirov | Found Alien Artifact 16213 | -4/Zhirov | Identified Integrated Dissipator 16213 | -4/Zhirov | Installed Integrated Dissipator, increased core heat dissipation (+20) 16220 | -4/Zhirov | Found Alien Artifact 16395 | -4/Zhirov | Entered Proximity Caves 16437 | -3/Proximity Caves | Core integrity fell below 50% 16467 | -3/Proximity Caves | Lost 4 parts (3n1u) 16507 | -3/Proximity Caves | Build established: Hacker-Mutant 16515 | -3/Proximity Caves | Discovered new exit (range 13) 16523 | -3/Proximity Caves | Entered Research 16523 | -3/Research | Evolved 2 slots: Propulsion x1, Utility x1 16605 | -3/Research | Joined by Warlord Infantry squad 16853 | -3/Research | Spotted B-86 Titan 16882 | -3/Research | Joined by Warlord Ranger squad 16889 | -3/Research | Discovered new exit (range 5) 16890 | -3/Research | Identified exit to Testing 16928 | -3/Research | Fabricated Assault Drone Bay (x1) 16949 | -3/Research | Entered Testing 16985 | -3/Testing | Found Prototype Device 16985 | -3/Testing | Identified 2N-1CE's Frost Array 17028 | -3/Testing | Discovered new exit (range 9) 17031 | -3/Testing | Identified exit to Research 17053 | -3/Testing | Found Prototype Energy Cannon 17053 | -3/Testing | Identified Null Cannon 17108 | -3/Testing | Unstable Terrabomb Derivative detonated 17125 | -3/Testing | Build established: Scavenger-Scout 17219 | -3/Testing | Scanned by Researcher 17238 | -3/Testing | Spotted Striker 17239 | -3/Testing | Spotted Striker 17245 | -3/Testing | Spotted Alpha 7 17249 | -3/Testing | Stole the SGEMP Prototype 17253 | -3/Testing | Identified Transdimensional Reconstructor 17253 | -3/Testing | Warped through subspace 17311 | -3/Testing | Lost 9 parts (1p4n2u2w) 17313 | -3/Testing | Entered Research 17313 | -2/Research | Evolved 2 slots: Utility x2 17508 | -2/Research | Lost 3 parts (1n2u) 17519 | -2/Research | Discovered new exit (range 6) 17521 | -2/Research | Identified exit to Access 17521 | -2/Research | Entered Access 17521 | -1/Access | Evolved 2 slots: Power x1, Utility x1 17522 | -1/Access | Loaded intel: 109 machine locations 17522 | -1/Access | Loaded intel: 59 trap records 17522 | -1/Access | Identified exit to Surface 17522 | -1/Access | Discovered exit to Surface (range 101) 17522 | -1/Access | Identified exit to Command 17522 | -1/Access | Discovered exit to Command (range 86) 17522 | -1/Access | Delivered the SGEMP Prototype to Zhirov 17522 | -1/Access | Zhirov transferred Access data 17527 | -1/Access | Energy Cycler disabled 17657 | -1/Access | Spotted B-99 Colossus 17666 | -1/Access | Allies destroyed B-99 Colossus 17671 | -1/Access | Found Prototype Hackware 17671 | -1/Access | Identified Deep Network Scanner 17678 | -1/Access | Found Corrupted Prototype Ballistic Gun 17678 | -1/Access | Identified Multirail 17713 | -1/Access | Zhirov warped through subspace 17810 | *** | Escaped! Last Messages --------------- 17711_ U-05 Engineer lays Concrete. 17713_ Zhirov warps through subspace. 17713_ U-05 Engineer lays Concrete. 17714_ K-01 Serf collects debris. 17714_ U-05 Engineer lays Concrete. 17716_ Acquired 74 matter. 17716_ U-05 Engineer lays Concrete. 17719_ K-01 Serf collects debris. 17719_ U-05 Engineer lays Concrete. 17721_ U-05 Engineer builds a Door. 17722_ K-01 Serf collects debris. 17723_ U-05 Engineer lays Concrete. 17724_ Acquired Graphene Brace. 17767_ ALERT: Suspicious intruders detected, dispatching Specialist reinforcements to area. 17771_ ALERT: Rogue bot located, Q-Series report to Access Zone 8J. 17788_ System corrupted: Energy discharge (-29). 17806_ System corrupted: Matter fused (-8). Map ----- +----------------------------------------------------+ | # ### ### ##########+##################### | | # ### ### ########## ###### ###### | | # ### ### ########## ###### ###### | | # ### " ### ########## ###### ! ###### | | + ###""" ### ### ## ###### # | | # ### """ ### ### ## ###### # | | # ### " + + " " # ### | | + ### ####### ######### ""R"" + ### | | # ### ####### ######### """"" # # | | # #######+################################## # | | # ################################# # | | # ! # | | # + | | """"" ######### ""############## # | | """"" ######### ""##### # # | | """"" ######### ""##### # # | | """"" ######### T##### + # | | """"" ######### ""##### # ### | | ######### ""##### # ### | | ######### ""##### #^^# | | ######## #### # # | | ###+###### ######## ##### # # | | ### ######## ##### # # | | ### ######### ############## # | | ### / ######### ############## # | | ## ######### @" ### # # | | # # ######### "" ### # # | | ##] ######### ### " # # | | ## ######### ### """ # # | | ## ######### ### """ # # | | #####+##############""""""""""### " + + | | ##### ##############""""""""""### # # | | "##### ##############""""""""""### # # | | "##### ##############""""""""""############## ### | | ##### ############## ############# ## | | ##### ############## ############# | | #####+############## ############# | | # ####### ############# ## | | # ####### ################### | | ## ####### ######### | | + ####### ######### | | # ########## ############ "" | | =# # # # " ###""" | | / # # # """ ###"T | | # # / + """ ###""" | | # ! # # # " ### "" | | # # # # ### | | # # # # ### | | # ########## # ### | | # ##################### # + + | +----------------------------------------------------+ Best States ------------- Heat Dissipation 166 Energy Generation 23 Energy Capacity 600 Matter Stores 300 Matter Capacity 800 Sight Range 18 Robot Scan Range 20 Terrain Scan Range 16 Terrain Scan Density 85 Jamming Range 14 Armor Coverage 885 Propulsion Shielding 90 Weapon Cycling 15 Evasion (%) 63 Recoil Reduction 4 Offensive Hacking 25 Defensive Hacking 28 Authchip Count 1 Item Schematics ----------------- Huge Storage Unit | -10/Materials | Hacked Hvy. Armor Plating | -8/Materials | Hacked Sub. Shrapnel Launcher | -8/Materials | Scanalyzed Assault Drone Bay | -4/Zhirov | Free Exp. Heat Sink | -4/Zhirov | Free Exp. Optical Array | -4/Zhirov | Free Imp. Arc Thrower | -4/Zhirov | Free Cmb. Linear Gravjet | -3/Testing | Hacked Robot Schematics ------------------ M-13 Machinist | -10/Materials | Hacked Fabricated ------------ Assault Drone Bay | x1 | -3/Research | Authchip Alien Tech Used ----------------- Integrated Dissipator Transdimensional Reconstructor Achievements -------------- None Challenges ------------ None Game ------ Seed ShrapnelColdLaser Manual? 0 Play Time 02:47:56 Cumulative 425.9 hours Start 2023.08.19 @ 21:50:29 End 2023.08.22 @ 12:13:11 Sessions 28 Manual Loads 0 Difficulty Rogue Special Mode None Game No. 186 Rogue 186 Adventurer 0 Explorer 0 Win Type 0 Total 10 Types 7/0/1/1/0/0/0/1/0 Lore% 86 Gallery% 92 Achievement% 71 Wizard Run 0 Options --------- ASCII 1 Keyboard 1 Movement Vi Keybinds 0 Fullscreen 2 Font 14/SmallcapsGlow Map View 72x54 Tactical HUD 1 Map Filters NONE Filters NONE Steam 0 RUN: 5ab42ab2-d16d-4361-b2c3-0a8d1e5d62e0